fUSD/lending_fUSD_20240615
["ID","MTS","AMOUNT","RATE_DAILY","PERIOD"]
[329564708,1718439074336,-500.0,0.00022739,3]
[329564709,1718439074364,-500.0,0.00022739,3]
[329564710,1718439074375,-500.0,0.00022739,3]
[329564711,1718439074386,-500.0,0.00022739,3]
[329564712,1718439074419,-500.0,0.00022739,3]
[329564713,1718439074454,-356.1284034,0.00022739,3]
[329564714,1718439074485,-529.439865,0.00022739,3]
[329564715,1718439074525,-1223.84,0.00022739,3]
[329564716,1718439074551,-500.0,0.00022739,3]
[329564717,1718439074602,-704.51,0.00022739,3]
[329564718,1718439074621,-1209.48,0.00022739,3]
[329564719,1718439074633,-500.0,0.00022739,3]
[329564720,1718439074644,-500.0,0.00022739,3]
[329564721,1718439074656,-500.0,0.00022739,3]
[329564722,1718439074675,-500.0,0.00022739,3]
[329564723,1718439074692,-500.0,0.00022739,3]
[329564724,1718439074718,-394.27915732,0.00022739,3]
[329564725,1718439074735,-2725.87,0.00022739,3]
[329564726,1718439074761,-500.0,0.00022739,3]
[329564727,1718439074776,-606.84,0.00022739,3]
[329564728,1718439074799,-151.0,0.00022739,7]
[329564729,1718439074814,-500.0,0.00022739,3]
[329564730,1718439074829,-500.0,0.00022739,3]
[329564731,1718439074842,-649.27,0.00022739,3]
[329564732,1718439074855,-500.0,0.00022739,3]
[329564733,1718439074885,-500.0,0.00022739,3]
[329564734,1718439074905,-500.0,0.00022739,3]
[329564735,1718439074930,-500.0,0.00022739,3]
[329564736,1718439074954,-500.0,0.00022739,3]
[329564737,1718439074971,-500.0,0.00022739,3]
[329564738,1718439074992,-861.55,0.00022739,3]
[329564739,1718439075033,-581.25,0.00022739,3]
[329564740,1718439075044,-538.91250002,0.00022739,3]
[329564741,1718439075084,-500.0,0.00022739,3]
[329564742,1718439075160,-500.0,0.00022739,3]
[329564743,1718439075221,-859.59,0.00022739,3]
[329564744,1718439075239,-500.0,0.00022739,3]
[329564745,1718439075273,-500.0,0.00022739,3]
[329564746,1718439075285,-500.0,0.00022739,3]
[329564747,1718439075314,-500.0,0.00022739,3]
[329564748,1718439075328,-500.0,0.00022739,3]
[329564749,1718439075339,-848.59,0.00022739,3]
[329564750,1718439075366,-500.0,0.00022739,3]
[329564751,1718439075433,-919.69,0.00022739,3]
[329564752,1718439075448,-429.5254478,0.00022739,3]
[329564753,1718439075467,-500.0,0.00022739,3]
[329564754,1718439075478,-500.0,0.00022739,3]
[329564755,1718439075489,-500.0,0.00022739,3]
[329564756,1718439075500,-500.0,0.00022739,3]
[329564757,1718439075514,-500.0,0.00022739,3]
[329564758,1718439075529,-1908.41,0.00022739,3]
[329564759,1718439075552,-500.0,0.00022739,3]
[329564760,1718439075563,-565.04,0.00022739,3]
[329564761,1718439075590,-150.89217415,0.00022739,3]
[329564762,1718439075607,-537.41,0.00022739,3]
[329564763,1718439075621,-500.0,0.00022739,3]
[329564764,1718439075641,-500.0,0.00022739,3]
[329564765,1718439075656,-2360.8331083,0.0002276,2]
[329564766,1718439075668,-9699.3126476,0.00022776,2]
[329564767,1718439075696,-2095.2783282,0.00022776,2]
[329564768,1718439075712,-662.8298909,0.00022792,2]
[329564769,1718439075940,-2000.0,0.00022807,2]
[329564770,1718439075972,-200.0,0.00022807,2]
[329564771,1718439075989,-2000.0,0.00022807,2]
[329564772,1718439076031,-200.0,0.00022807,2]
[329564773,1718439076064,-200.0,0.00022807,2]
[329564774,1718439076110,-212.0,0.0002281,2]
[329564775,1718439076133,-151.0,0.00022863,2]
[329564776,1718439076146,-298.8,0.00022929,2]
[329564777,1718439076158,-175.51,0.0002297,15]
[329564778,1718439076172,-150.5,0.0002297,15]
[329564779,1718439076204,-150.5,0.0002298,15]
[329564780,1718439076289,-150.5,0.0002298,15]
[329564781,1718439076326,-150.5,0.0002299,15]
[329564782,1718439076339,-150.5,0.0002299,15]
[329564783,1718439076353,-5000.0,0.00023,2]
[329564784,1718439076395,-157558.78953832,0.00023,2]
[329564785,1718439076422,-1300.0,0.00023,2]
[329564786,1718439076442,-500.0,0.00023,2]
[329564787,1718439076464,-500.0,0.00023,2]
[329564788,1718439076475,-500.0,0.00023,2]
[329564789,1718439076489,-500.0,0.00023,2]
[329564790,1718439076501,-500.0,0.00023,2]
[329564791,1718439076520,-500.0,0.00023,2]
[329564792,1718439076553,-500.0,0.00023,2]
[329564793,1718439076566,-500.0,0.00023,2]
[329564794,1718439076578,-500.0,0.00023,2]
[329564795,1718439076608,-500.0,0.00023,2]
[329564796,1718439076619,-500.0,0.00023,2]
[329564797,1718439076645,-500.0,0.00023,2]
[329564798,1718439076656,-500.0,0.00023,2]
[329564799,1718439076668,-500.0,0.00023,2]
[329564800,1718439076687,-500.0,0.00023,2]
[329564801,1718439076703,-500.0,0.00023,2]
[329564802,1718439076731,-500.0,0.00023,2]
[329564803,1718439076742,-500.0,0.00023,2]
[329564804,1718439076758,-500.0,0.00023,2]
[329564805,1718439076793,-500.0,0.00023,2]
[329564806,1718439076808,-500.0,0.00023,2]
[329564807,1718439076819,-500.0,0.00023,2]
[329564808,1718439076845,-500.0,0.00023,2]
[329564809,1718439076856,-500.0,0.00023,2]
[329564810,1718439076868,-500.0,0.00023,2]
[329564811,1718439076882,-500.0,0.00023,2]
[329564812,1718439076896,-500.0,0.00023,2]
[329564813,1718439076907,-500.0,0.00023,2]
[329564814,1718439076917,-500.0,0.00023,2]
[329564815,1718439076939,-500.0,0.00023,2]
[329564816,1718439076951,-500.0,0.00023,2]
[329564817,1718439076976,-500.0,0.00023,2]
[329564818,1718439076991,-500.0,0.00023,2]
[329564819,1718439077002,-500.0,0.00023,2]
[329564820,1718439077015,-500.0,0.00023,2]
[329564821,1718439077039,-500.0,0.00023,2]
[329564822,1718439077051,-500.0,0.00023,2]
[329564823,1718439077088,-500.0,0.00023,2]
[329564824,1718439077114,-500.0,0.00023,2]
[329564825,1718439077131,-500.0,0.00023,2]
[329564826,1718439077168,-500.0,0.00023,2]
[329564827,1718439077208,-500.0,0.00023,2]
[329564828,1718439077239,-500.0,0.00023,2]
[329564829,1718439077255,-500.0,0.00023,2]
[329564830,1718439077266,-500.0,0.00023,2]
[329564831,1718439077277,-500.0,0.00023,2]
[329564832,1718439077289,-500.0,0.00023,2]
[329564833,1718439077299,-500.0,0.00023,2]
[329564834,1718439077348,-500.0,0.00023,2]
[329564835,1718439077370,-500.0,0.00023,2]
[329564836,1718439077404,-500.0,0.00023,2]
[329564837,1718439077415,-500.0,0.00023,2]
[329564838,1718439077429,-500.0,0.00023,2]
[329564839,1718439077440,-500.0,0.00023,2]
[329564840,1718439077450,-500.0,0.00023,2]
[329564841,1718439077461,-500.0,0.00023,2]
[329564842,1718439077484,-500.0,0.00023,2]
[329564843,1718439077504,-500.0,0.00023,2]
[329564844,1718439077532,-500.0,0.00023,2]
[329564845,1718439077553,-500.0,0.00023,2]
[329564846,1718439077566,-500.0,0.00023,2]
[329564847,1718439077578,-500.0,0.00023,2]
[329564848,1718439077600,-500.0,0.00023,2]
[329564849,1718439077621,-500.0,0.00023,2]
[329564850,1718439077655,-500.0,0.00023,2]
[329564851,1718439077694,-500.0,0.00023,2]
[329564852,1718439077704,-500.0,0.00023,2]
[329564853,1718439077715,-500.0,0.00023,2]
[329564854,1718439077738,-500.0,0.00023,2]
[329564855,1718439077756,-151.0,0.00023,7]
[329564856,1718439077767,-201.253766,0.00023,2]
[329564857,1718439077796,-500.0,0.00023,2]
[329564858,1718439077808,-500.0,0.00023,2]
[329564859,1718439077826,-500.0,0.00023,2]
[329564860,1718439077896,-500.0,0.00023,2]
[329564861,1718439077912,-500.0,0.00023,2]
[329564862,1718439077927,-500.0,0.00023,2]
[329564863,1718439077961,-500.0,0.00023,2]
[329564864,1718439077980,-500.0,0.00023,2]
[329564865,1718439078018,-500.0,0.00023,2]
[329564866,1718439078045,-500.0,0.00023,2]
[329564867,1718439078057,-500.0,0.00023,2]
[329564868,1718439078090,-500.0,0.00023,2]
[329564869,1718439078132,-500.0,0.00023,2]
[329564870,1718439078167,-500.0,0.00023,2]
[329564871,1718439078200,-500.0,0.00023,2]
[329564872,1718439078213,-500.0,0.00023,2]
[329564873,1718439078255,-500.0,0.00023,2]
[329564874,1718439078266,-500.0,0.00023,2]
[329564875,1718439078279,-500.0,0.00023,2]
[329564876,1718439078290,-500.0,0.00023,2]
[329564877,1718439078309,-500.0,0.00023,2]
[329564878,1718439078320,-500.0,0.00023,2]
[329564879,1718439078332,-257.72870634,0.00023,2]
[329564880,1718439079051,-500.0,0.00021917,2]
[329564881,1718439079063,-500.0,0.00021917,2]
[329564882,1718439079075,-500.0,0.00022191,3]
[329564883,1718439079086,-363.12,0.00022191,3]
[329564884,1718439079106,-500.0,0.00022465,3]
[329564885,1718439079130,-500.0,0.00022465,3]
[329564886,1718439079149,-500.0,0.00022739,3]
[329564887,1718439079168,-500.0,0.00022739,3]
[329564888,1718439079196,-242.27129366,0.00023,2]
[329564889,1718439079240,-500.0,0.00023,2]
[329564890,1718439079264,-500.0,0.00023,2]
[329564891,1718439079279,-500.0,0.00023,2]
[329564892,1718439079295,-500.0,0.00023,2]
[329564893,1718439079357,-500.0,0.00023,2]
[329564894,1718439079397,-500.0,0.00023,2]
[329564895,1718439079423,-500.0,0.00023,2]
[329564896,1718439079439,-500.0,0.00023,2]
[329564897,1718439079449,-500.0,0.00023,2]
[329564898,1718439079460,-500.0,0.00023,2]
[329564899,1718439079483,-500.0,0.00023,2]
[329564900,1718439079496,-500.0,0.00023,2]
[329564901,1718439079508,-151.0,0.00023,7]
[329564902,1718439079519,-177.0,0.00023,2]
[329564903,1718439079551,-643.31,0.00023012,3]
[329564904,1718439079561,-500.0,0.00023013,3]
[329564905,1718439079572,-500.0,0.00023013,3]
[329564906,1718439079587,-537.51567278,0.00023013,3]
[329564907,1718439079613,-500.0,0.00023013,3]
[329564908,1718439079627,-500.0,0.00023013,3]
[329564909,1718439079652,-628.72093039,0.00023013,3]
[329564910,1718439079666,-500.0,0.00023013,3]
[329564911,1718439079701,-500.0,0.00023013,3]
[329564912,1718439079744,-500.0,0.00023013,3]
[329564913,1718439079755,-570.84,0.00023013,3]
[329564914,1718439079776,-500.0,0.00023013,3]
[329564915,1718439079789,-500.0,0.00023013,3]
[329564916,1718439079800,-599.62337602,0.00023013,3]
[329564917,1718439079811,-462.85392646,0.00023013,3]
[329564918,1718439079821,-500.0,0.00023013,3]
[329564919,1718439079869,-481.1647697,0.00023013,3]
[329564920,1718439082775,-500.0,0.00021917,2]
[329564921,1718439082801,-469.65529697,0.00022191,3]
[329564922,1718439082833,-30.34470303,0.00022191,3]
[329564923,1718439082851,-510.02790794,0.00022465,3]
[329564924,1718439082916,-18.8352303,0.00023013,3]
[329564925,1718439082960,-529.12497595,0.00023013,3]
[329564926,1718439082971,-500.0,0.00023013,3]
[329564927,1718439082982,-746.45,0.00023013,3]
[329564928,1718439083004,-373.57946592,0.00023013,3]
[329564929,1718439083056,-678.1527546,0.00021916,2]
[329564930,1718439083070,-126.42053408,0.00023013,3]
[329564931,1718439083082,-282.70872406,0.00023013,3]
[329564932,1718439083104,-802.52,0.00023013,3]
[329564933,1718439083121,-113.0791355,0.00023013,3]
[329564934,1718439083389,-373.35760551,0.00023013,3]
[329564935,1718439083423,-285.98325899,0.00023013,3]
[329564936,1718439083434,-67.88674101,0.00023013,3]
[329564937,1718439084741,-205.09464085,0.00021915,2]
[329564938,1718439084765,-432.11325899,0.00023013,3]
[329564939,1718439084804,-500.0,0.00023013,3]
[329564940,1718439084828,-532.15,0.00023013,3]
[329564941,1718439084864,-491.74754736,0.00023013,3]
[329564942,1718439084881,-357.53245264,0.00023013,3]
[329564943,1718439084902,-129.74406775,0.00023013,3]
[329564961,1718439742943,11938.17,0.000273,60]
[329564963,1718439911607,11938.17,0.000273,60]
[329564966,1718440025104,11938.17,0.000273,60]
[329564968,1718440038175,-155.0,0.00014462,2]
[329564969,1718440038207,-0.00744052,0.00014462,2]
[329564972,1718440048243,-154.99255948,0.00014462,2]
[329564973,1718440048278,-155.0,0.00014462,2]
[329564974,1718440048321,-1254.37213807,0.00014462,2]
[329564975,1718440048348,-1068.57925236,0.00014463,2]
[329564976,1718440048379,-205.09464085,0.00014464,2]
[329564977,1718440048435,-300.0,0.00014482,2]
[329564978,1718440048471,-8373.3955,0.00014483,2]
[329564979,1718440048509,-420.0,0.00015858,2]
[329564980,1718440048564,-166.64,0.00016404,2]
[329564981,1718440048592,-1808.03095238,0.000165,2]
[329564982,1718440048629,-218.48375026,0.0001726,2]
[329564983,1718440049618,958.48201371,0.00013739,2]
[329564985,1718440053178,-205.09464085,0.00014461,2]
[329564986,1718440053230,-160.63664696,0.00014462,2]
[329564988,1718440063869,958.48201371,0.00013739,2]
[329564990,1718440081615,936.01462295,0.00013739,2]
[329564991,1718440112034,14476.99674032,0.00013739,2]
[329564992,1718440112414,348.18949365,0.00013739,2]
[329564993,1718440116251,19791.37177794,0.00013739,2]
[329564994,1718440117118,180.8170053,0.00013739,2]
[329564995,1718440119364,290.07452545,0.00013739,2]
[329564996,1718440120958,551.84092483,0.00013739,2]
[329564997,1718440121938,363.2223857,0.00013739,2]
[329564998,1718440124367,155.0,0.00013739,2]
[329564999,1718440124765,948.49375379,0.00013739,2]
[329565000,1718440126534,1364.49067987,0.00013739,2]
[329565001,1718440126857,4763.19491798,0.00013739,2]
[329565002,1718440130430,324.98293154,0.00013739,2]
[329565003,1718440131243,180.8170053,0.00013739,2]
[329565004,1718440136441,19791.37177794,0.00013739,2]
[329565005,1718440138325,14476.99674032,0.00013739,2]
[329565006,1718440138427,219.02483678,0.00013739,2]
[329565007,1718440138780,439.50726813,0.00013739,2]
[329565008,1718440139444,290.07452545,0.00013739,2]
[329565009,1718440139931,251.03282903,0.00013739,2]
[329565010,1718440140988,551.84092483,0.00013739,2]
[329565011,1718440141583,11938.17,0.000273,60]
[329565012,1718440148846,4763.19491798,0.00013739,2]
[329565013,1718440151351,1364.49067987,0.00013739,2]
[329565014,1718440152021,7542.51530171,0.00013739,2]
[329565015,1718440156226,19791.37177794,0.00013739,2]
[329565016,1718440157359,290.07452545,0.00013739,2]
[329565017,1718440159158,201.33023344,0.00013739,2]
[329565018,1718440164986,551.84092483,0.00013739,2]
[329565019,1718440166541,1364.49067987,0.00013739,2]
[329565020,1718440168903,4763.19491798,0.00013739,2]
[329565021,1718440175724,11938.17,0.000273,60]
[329565022,1718440175997,7542.51530171,0.00013739,2]
[329565023,1718440178211,19791.37177794,0.00013739,2]
[329565024,1718440182978,553.82138172,0.00013739,2]
[329565025,1718440183362,290.07452545,0.00013739,2]
[329565026,1718440184532,592.59428709,0.00013739,2]
[329565027,1718440184879,4763.19491798,0.00013739,2]
[329565028,1718440195998,7542.51530171,0.00013739,2]
[329565029,1718440196277,5517.75753286,0.00013739,2]
[329565030,1718440200918,4763.19491798,0.00013739,2]
[329565031,1718440202583,150.0,0.00013739,2]
[329565032,1718440202778,150.0,0.00013739,2]
[329565033,1718440203113,150.0,0.00013739,2]
[329565034,1718440203263,150.0,0.00013739,2]
[329565035,1718440203421,316.04542437,0.00013739,2]
[329565036,1718440203792,150.0,0.00013739,2]
[329565037,1718440203972,150.0,0.00013739,2]
[329565038,1718440204686,150.0,0.00013739,2]
[329565039,1718440204821,150.0,0.00013739,2]
[329565040,1718440204998,150.0,0.00013739,2]
[329565041,1718440205208,150.0,0.00013739,2]
[329565042,1718440205483,150.0,0.00013739,2]
[329565043,1718440205636,150.0,0.00013739,2]
[329565044,1718440205732,150.0,0.00013739,2]
[329565045,1718440205855,150.0,0.00013739,2]
[329565046,1718440206129,165.64016405,0.00013739,2]
[329565047,1718440214021,7542.51530171,0.00013739,2]
[329565048,1718440218866,4763.19491798,0.00013739,2]
[329565049,1718440228732,11938.17,0.000273,60]
[329565051,1718440234983,-643.46414977,0.00014366,2]
[329565052,1718440235026,-484.55762474,0.00014366,2]
[329565053,1718440235110,-40.20142549,0.00014366,2]
[329565054,1718440235161,-760.44,0.00014452,3]
[329565055,1718440235183,-542.09946041,0.0001446,2]
[329565056,1718440235194,-267.62419174,0.00014461,2]
[329565057,1718440235244,-3974.66572175,0.00014462,2]
[329565058,1718440235260,-423864.10301614,0.00014462,2]
[329565059,1718440235296,-327.14049148,0.00015414,2]
[329565060,1718440235315,-164.66,0.00015514,2]
[329565061,1718440235367,-1201.64624974,0.0001726,2]
[329565062,1718440235388,-499.99,0.0001726,2]
[329565063,1718440235404,-583.87,0.00017372,2]
[329565064,1718440235422,-323.420795,0.00018904,2]
[329565065,1718440235445,-250.0,0.00019059,2]
[329565066,1718440235493,-150.0,0.00019156,2]
[329565067,1718440235517,-500.0,0.00019178,2]
[329565068,1718440235533,-354.17000936,0.00019178,2]
[329565069,1718440235545,-500.0,0.00019178,2]
[329565070,1718440235586,-1224.89,0.0001918,2]
[329565071,1718440235605,-1090.56,0.00019197,2]
[329565072,1718440235620,-1852.42,0.00019247,2]
[329565073,1718440235632,-162.14,0.00019247,2]
[329565074,1718440235652,-197.7,0.00019251,2]
[329565075,1718440235680,-1267.98,0.00019272,2]
[329565076,1718440235702,-156.15243361,0.00019296,2]
[329565077,1718440235748,-1069.4718472,0.00019296,2]
[329565078,1718440235788,-1259.34835223,0.00019296,2]
[329565079,1718440235798,-156.38587268,0.00019296,2]
[329565080,1718440235893,-157.98584404,0.00019297,2]
[329565081,1718440235944,-893.75213191,0.00019297,2]
[329565082,1718440235961,-23890.0,0.00019298,2]
[329565083,1718440235991,-3634.6,0.00019345,2]
[329565084,1718440236024,-391.88,0.00019364,2]
[329565085,1718440236056,-23920.92750192,0.00019455,2]
[329565086,1718440236341,-11092.11806155,0.00019455,2]
[329565087,1718440236421,7542.51530171,0.00013739,2]
[329565088,1718440236841,3187.50482645,0.00013739,2]
[329565099,1718440242438,-677.64443653,0.00019455,2]
[329565101,1718440242469,-583.87,0.00019636,2]
[329565102,1718440242489,-1277.65573434,0.00019722,2]
[329565104,1718440242593,-1229.99178767,0.00019722,2]
[329565105,1718440242606,-234.74594714,0.00019723,2]
[329565106,1718440242620,-1629.13176585,0.00019723,2]
[329565107,1718440242654,-333.74011988,0.00019723,2]
[329565108,1718440242676,-644.92020859,0.00019723,2]
[329565109,1718440242691,-1298.10070513,0.00019723,2]
[329565110,1718440242712,-450.89332225,0.00019723,2]
[329565111,1718440242737,-272.32466048,0.00019723,2]
[329565112,1718440245654,-157.5174549,0.00019723,2]
[329565113,1718440245692,-162.97039255,0.00019723,2]
[329565114,1718440245705,-581.81176425,0.00019724,2]
[329565115,1718440245719,-5895.29602756,0.00019724,2]
[329565146,1718440249897,-747.81497698,0.00019724,2]
[329565147,1718440252003,-723.67726574,0.00015314,2]
[329565148,1718440252027,-826.90705478,0.00019724,2]
[329565152,1718440254659,-677.98,0.00019724,2]
[329565153,1718440254688,-515.80849288,0.00019724,2]
[329565154,1718440255162,-296.86678396,0.00019724,2]
[329565155,1718440255196,-2022.22532643,0.00019724,2]
[329565156,1718440255243,-495.77639447,0.00019724,2]
[329565157,1718440255609,-836.60016149,0.00019724,2]
[329565161,1718440255922,-723.67726574,0.00017079,2]
[329565162,1718440255939,-1853.81532382,0.00019724,2]
[329565163,1718440255965,-1107.06896951,0.00019724,2]
[329565164,1718440255985,-787.31172062,0.00019724,2]
[329565165,1718440256040,-206.11413345,0.00019724,2]
[329565166,1718440256076,-386.74051673,0.00019724,2]
[329565167,1718440256107,-208.24030706,0.00019724,2]
[329565168,1718440256186,-309.17558575,0.00019724,2]
[329565169,1718440256197,-155.39257327,0.00019724,2]
[329565170,1718440256213,-170.40459741,0.00019724,2]
[329565171,1718440256226,-2468.30005725,0.00019725,2]
[329565172,1718440256242,-1641.1195694,0.00019725,2]
[329565173,1718440256257,-65.10216255,0.00019725,2]
[329565181,1718440258050,7542.51530171,0.00013739,2]
[329565184,1718440273999,7542.51530171,0.00013739,2]
[329565185,1718440285168,51996.75852518,0.00013739,2]
[329565186,1718440360377,11937.0,0.000273,120]
[329565187,1718440403075,-300.0,0.00013738,2]
[329565188,1718440403119,-1047.79360002,0.00015,2]
[329565189,1718440424156,198652.20639998,0.00014,2]
[329565190,1718440444621,5000.0,0.000118,2]
[329565191,1718440552215,205.0,9.8e-05,2]
[329565192,1718440552448,-300.0,0.00010998,2]
[329565193,1718440552507,-35515.37025264,0.00010999,2]
[329565194,1718440552568,-15625.13815425,0.00011,2]
[329565195,1718440552639,-263.62990129,0.00011798,2]
[329565196,1718440552682,-1393.33701124,0.00011798,2]
[329565197,1718440552758,-310.89765695,0.00011798,2]
[329565198,1718440552810,-3825.60004292,0.00011799,2]
[329565199,1718440552899,-340.52076322,0.00011799,2]
[329565200,1718440552931,-35778.71913277,0.000118,2]
[329565201,1718440552976,-7542.51530171,0.000118,2]
[329565202,1718440568050,7542.51530171,0.000118,2]
[329565203,1718440590171,4503.84895949,0.000118,2]
[329565204,1718440592613,4019.01859278,0.0001,2]
[329565205,1718440614231,288.47814589,0.000125,2]
[329565209,1718441123321,520.26,0.00010959,2]
[329565210,1718441151088,348.18949365,0.00010959,2]
[329565211,1718441156653,7542.51530171,0.00010959,2]
[329565212,1718441168624,7542.51530171,0.00010959,2]
[329565213,1718441169090,348.18949365,0.00010959,2]
[329565215,1718441189034,348.18949365,0.00010959,2]
[329565216,1718441194525,573.17047321,0.00012499,7]
[329565217,1718441208225,-150000.0,0.000125,2]
[329565218,1718441236201,-300.66724725,0.00010959,2]
[329565219,1718441241139,-47.5222464,0.00010959,2]
[329565220,1718441241196,-262.82966341,0.000125,2]
[329565221,1718441252273,-688.35032385,0.000125,2]
[329565222,1718441351121,-380.88174536,0.00010959,2]
[329565223,1718441351152,-173.12,0.00011414,2]
[329565224,1718441351180,-200.0,0.00012438,2]
[329565225,1718441351212,-400.0,0.00012498,2]
[329565226,1718441351255,-625.85456106,0.00012498,2]
[329565227,1718441351296,-436.61426308,0.00012498,2]
[329565228,1718441351344,-300.0,0.00012499,2]
[329565229,1718441351405,-69341.3804305,0.000125,2]
[329565230,1718441351469,-2914.7345,0.000125,2]
[329565231,1718441351519,-44498.30447057,0.000125,2]
[329565232,1718441351562,-155.0,0.000125,2]
[329565247,1718441434813,-593.56,0.00012698,2]
[329565248,1718441434834,-45.12830435,0.00012979,2]
[329565254,1718441435663,-110.06530836,0.00012979,2]
[329565255,1718441435698,-3901.11799853,0.0001298,2]
[329565256,1718441435710,-1401.60862,0.00013,2]
[329565257,1718441435724,-600.0,0.000136,4]
[329565258,1718441435748,-1200.0,0.000137,5]
[329565259,1718441435761,-300.0,0.00013799,2]
[329565260,1718441435778,-1800.0,0.000138,5]
[329565261,1718441435791,-219.8,0.0001389,3]
[329565262,1718441435828,-2400.0,0.000139,5]
[329565263,1718441435858,-378.01690785,0.000139,2]
[329565264,1718441435888,-222.80882396,0.000139,2]
[329565265,1718441435915,-395.59317464,0.000139,2]
[329565266,1718441435928,-614.26373264,0.000139,2]
[329565267,1718441435952,-150.0,0.00013973,2]
[329565268,1718441435970,-151.3,0.0001399,2]
[329565269,1718441435986,-151.3,0.0001399,2]
[329565270,1718441436001,-151.3,0.0001399,2]
[329565271,1718441436012,-151.3,0.0001399,2]
[329565272,1718441436023,-151.3,0.0001399,2]
[329565273,1718441436035,-151.3,0.0001399,2]
[329565274,1718441436065,-151.3,0.0001399,2]
[329565275,1718441436077,-151.3,0.0001399,2]
[329565276,1718441436089,-176.75608764,0.0001399,2]
[329565277,1718441436104,-151.3,0.0001399,2]
[329565278,1718441436136,-151.3,0.0001399,2]
[329565279,1718441436159,-151.3,0.0001399,2]
[329565280,1718441436187,-151.3,0.0001399,2]
[329565281,1718441436198,-151.3,0.0001399,2]
[329565282,1718441436211,-151.3,0.0001399,2]
[329565283,1718441436244,-151.3,0.0001399,2]
[329565284,1718441436255,-151.3,0.0001399,2]
[329565285,1718441436268,-151.3,0.0001399,2]
[329565286,1718441436279,-2148.73239974,0.00013998,2]
[329565287,1718441436296,-482.87677638,0.00013998,2]
[329565288,1718441436309,-2169.1130891,0.00013998,2]
[329565289,1718441436321,-65759.50752565,0.00013998,2]
[329565290,1718441436355,-1301.9183313,0.00013999,2]
[329565291,1718441436377,-7856.49,0.00013999,2]
[329565292,1718441436394,-319.88,0.00013999,2]
[329565293,1718441436425,-102477.20100076,0.00014,2]
[329565294,1718441436454,-897.76498644,0.00014,2]
[329565295,1718441436596,-484.28691844,0.00014,2]
[329565296,1718441436621,-710.59577829,0.00014,2]
[329565298,1718441441184,-1045.52853459,0.00014,2]
[329565299,1718441441222,-126704.39875828,0.00014,2]
[329565308,1718441446293,-4247.38850908,0.00014,2]
[329565309,1718441446313,-3582.68564268,0.00014,2]
[329565310,1718441446354,-552185.4779475,0.00014,2]
[329565333,1718441449874,-411.23532843,0.00012879,2]
[329565334,1718441449904,-199.66733816,0.00012879,2]
[329565335,1718441449920,-6215.47045439,0.00014,2]
[329565336,1718441449935,-6074.55805294,0.00014,2]
[329565337,1718441450004,-528.18244504,0.00014,2]
[329565338,1718441450030,-6763.69159539,0.00014,2]
[329565339,1718441450051,-3883.54834729,0.00014,2]
[329565342,1718441451524,-51816.58862278,0.00014,2]
[329565346,1718441465706,151.0,0.00024575,30]
[329565384,1718441719681,200.0,0.00024452,30]
[329565385,1718441719764,200.0,0.00024452,30]
[329565386,1718441719851,200.0,0.00024452,30]
[329565387,1718441719920,200.0,0.00024452,30]